bitfinex/quotes_BTCUSD_20251024
["timestamp","ask_amount","ask_price","bid_price","bid_amount"]
[1761275004283,0.18089574,110650.0,110640.0,0.27300962]
[1761275005401,0.54041803,110650.0,110640.0,0.09224318]
[1761275005936,0.54041803,110650.0,110640.0,0.27300962]
[1761275006874,0.54041803,110650.0,110640.0,0.09224318]
[1761275015307,0.54041803,110650.0,110640.0,0.00242417]
[1761275015308,0.73853455,110650.0,110640.0,0.00242417]
[1761275015517,0.69891302,110650.0,110640.0,0.00242417]
[1761275015726,0.72607457,110650.0,110640.0,0.00242417]
[1761275016589,0.72607457,110650.0,110640.0,0.00142417]
[1761275031210,0.18076644,110640.0,110630.0,0.0004]
[1761275031451,0.57647101,110640.0,110630.0,0.0004]
[1761275031987,0.52078278,110630.0,110620.0,0.0004]
[1761275032193,0.55698141,110620.0,110610.0,0.0004]
[1761275032410,0.66632271,110620.0,110610.0,0.0004]
[1761275032611,0.60793131,110620.0,110610.0,0.0004]
[1761275032814,0.63509868,110620.0,110610.0,0.0004]
[1761275033576,0.66177884,110620.0,110610.0,0.0004]
[1761275034185,0.66277884,110620.0,110610.0,0.0004]
[1761275037074,0.66277884,110620.0,110610.0,0.00142458]
[1761275046088,0.63561147,110620.0,110610.0,0.00142458]
[1761275046300,0.76161276,110620.0,110610.0,0.00142458]
[1761275048523,0.79410646,110620.0,110610.0,0.00142458]
[1761275049186,0.84284701,110620.0,110610.0,0.00142458]
[1761275049397,0.79410646,110620.0,110610.0,0.00142458]
[1761275049815,0.88392547,110620.0,110610.0,0.00142458]
[1761275050556,0.93266602,110620.0,110610.0,0.00142458]
[1761275051864,0.88392547,110620.0,110610.0,0.00142458]
[1761275052522,0.93266602,110620.0,110610.0,0.00142458]
[1761275052742,0.84284701,110620.0,110610.0,0.00142458]
[1761275055015,0.66810517,110620.0,110610.0,0.00142458]
[1761275055240,0.63561147,110620.0,110610.0,0.00142458]
[1761275059554,0.60893131,110620.0,110610.0,0.00142458]
[1761275059779,0.26893131,110620.0,110610.0,0.00142458]
[1761275060224,0.60893131,110620.0,110610.0,0.00142458]
[1761275060444,0.6025909,110620.0,110610.0,0.00142458]
[1761275074039,0.6350846,110620.0,110610.0,0.00142458]
[1761275075163,0.67126688,110620.0,110610.0,0.00142458]
[1761275075580,0.76108589,110620.0,110610.0,0.00142458]
[1761275089623,0.7674024,110620.0,110610.0,0.00142458]
[1761275089832,0.55699775,110610.0,110600.0,0.0004]
[1761275090043,0.57649614,110610.0,110600.0,0.0004]
[1761275091120,0.57649614,110610.0,110600.0,0.00088744]
[1761275091777,0.57749614,110610.0,110600.0,0.00088744]
[1761275092404,0.57949614,110610.0,110600.0,0.00088744]
[1761275095630,0.57949614,110610.0,110600.0,0.00122904]
[1761275099392,0.61198984,110610.0,110600.0,0.00122904]
[1761275101401,0.39412691,110610.0,110600.0,0.00122904]
[1761275101606,0.57494238,110610.0,110600.0,0.00122904]
[1761275103107,0.55544399,110610.0,110600.0,0.00122904]
[1761275103465,0.5749776,110610.0,110600.0,0.00122904]
[1761275111519,0.6074713,110610.0,110600.0,0.00122904]
[1761275111744,0.57584278,110610.0,110600.0,0.00122904]
[1761275123397,0.57500378,110610.0,110600.0,0.00122904]
[1761275133316,0.57500378,110610.0,110600.0,0.00095642]
[1761275140093,0.62374433,110610.0,110600.0,0.00095642]
[1761275140287,0.57500378,110610.0,110600.0,0.00095642]
[1761275147271,0.61118606,110610.0,110600.0,0.00095642]
[1761275147470,0.65992661,110610.0,110600.0,0.00095642]
[1761275151298,0.65993355,110610.0,110600.0,0.00095642]
[1761275166383,0.68710437,110610.0,110600.0,0.00095642]
[1761275172686,0.18083182,110600.0,110590.0,0.0004]
[1761275172889,0.20085893,110600.0,110590.0,0.0004]
[1761275174136,0.20185893,110600.0,110590.0,0.0004]
[1761275178322,0.20185893,110600.0,110590.0,0.00074166]
[1761275180670,0.20185893,110600.0,110590.0,0.01882647]
[1761275181952,0.20185893,110600.0,110590.0,0.00074166]
[1761275185650,0.62183403,110600.0,110590.0,0.00074166]
[1761275185860,0.74909447,110600.0,110590.0,0.00074166]
[1761275186046,0.77626837,110600.0,110590.0,0.00074166]
[1761275187574,0.74377467,110600.0,110590.0,0.00074166]
[1761275189052,0.74677467,110600.0,110590.0,0.00074166]
[1761275189947,0.55703045,110590.0,110580.0,0.0004]
[1761275190153,0.6989139,110590.0,110580.0,0.0004]
[1761275190781,0.72609141,110590.0,110580.0,0.0004]
[1761275191203,0.77483196,110590.0,110580.0,0.0004]
[1761275191412,0.77583196,110590.0,110580.0,0.0004]
[1761275192040,0.77783196,110590.0,110580.0,0.0004]
[1761275192907,0.78066067,110590.0,110580.0,0.0004]
[1761275193127,0.52089725,110560.0,110550.0,0.0004]
[1761275194461,0.52089725,110560.0,110550.0,0.00044872]
[1761275194684,0.54096459,110560.0,110550.0,0.00044872]
[1761275195102,0.54096459,110560.0,110550.0,0.00144872]
[1761275196600,0.52089725,110560.0,110550.0,0.00144872]
[1761275197015,0.52089725,110560.0,110550.0,0.00281588]
[1761275197645,0.52089725,110560.0,110550.0,0.11072625]
[1761275198468,0.34,110560.0,110550.0,0.29163986]
[1761275198668,0.49405509,110560.0,110550.0,0.2735485]
[1761275203832,0.31315784,110560.0,110550.0,0.2735485]
[1761275204436,0.52089469,110570.0,110560.0,0.18089725]
[1761275204688,0.52089469,110570.0,110560.0,0.28880598]
[1761275204918,0.52089469,110570.0,110560.0,0.09084428]
[1761275205126,0.52089469,110570.0,110560.0,0.108934]
[1761275205881,0.34,110570.0,110560.0,0.28983125]
[1761275206260,0.52088088,110570.0,110560.0,0.27174153]
[1761275210395,0.52088088,110570.0,110560.0,0.09084428]
[1761275210597,0.52088088,110570.0,110560.0,0.108934]
[1761275210808,0.52088088,110570.0,110560.0,0.28983125]
[1761275211065,0.52088088,110570.0,110560.0,0.27174153]
[1761275214176,0.18084817,110590.0,110570.0,0.18087362]
[1761275214394,0.20319241,110590.0,110580.0,0.01808645]
[1761275214626,0.20319241,110590.0,110570.0,0.29786355]
[1761275214869,0.27104435,110590.0,110570.0,0.29786355]
[1761275215448,0.27204435,110590.0,110570.0,0.29786355]
[1761275215862,0.27104435,110590.0,110570.0,0.29786355]
[1761275216263,0.25152852,110590.0,110570.0,0.29786355]
[1761275216469,0.26945872,110590.0,110570.0,0.29786355]
[1761275216670,0.25152852,110590.0,110570.0,0.29786355]
[1761275217492,0.18086453,110580.0,110570.0,0.29786355]
[1761275218952,0.18086453,110580.0,110570.0,0.29886355]
[1761275222221,0.18086453,110580.0,110570.0,0.11798993]
[1761275222668,0.18086453,110580.0,110570.0,0.11867338]
[1761275223080,0.18086453,110580.0,110570.0,0.29955426]
[1761275223302,0.18086453,110580.0,110570.0,0.11867338]
[1761275223952,0.18086453,110580.0,110570.0,0.29955426]
[1761275225948,0.18086453,110580.0,110570.0,0.11867338]
[1761275226159,0.18086453,110580.0,110570.0,0.27238334]
[1761275226574,0.19878744,110590.0,110570.0,0.27238334]
[1761275226775,0.18367626,110590.0,110570.0,0.27169989]
[1761275227212,0.20317308,110590.0,110570.0,0.27169989]
[1761275227876,0.20317308,110590.0,110570.0,0.27069989]
[1761275228909,0.52367626,110590.0,110580.0,0.28876999]
[1761275229129,0.52367626,110590.0,110580.0,0.27068354]
[1761275229777,0.34282809,110590.0,110580.0,0.27068354]
[1761275230659,0.52367626,110590.0,110580.0,0.27068354]
[1761275232086,0.52367626,110590.0,110580.0,0.27102523]
[1761275233315,0.34282809,110590.0,110580.0,0.27102523]
[1761275234918,0.34282809,110590.0,110580.0,0.27202523]
[1761275237058,0.34,110590.0,110580.0,0.27202523]
[1761275238333,0.34282785,110590.0,110580.0,0.27202523]
[1761275240643,0.52367602,110590.0,110580.0,0.27202523]
[1761275242338,0.52367607,110590.0,110580.0,0.27202523]
[1761275243192,0.54319773,110590.0,110580.0,0.27202523]
[1761275243395,0.52367607,110590.0,110580.0,0.27202523]
[1761275243597,0.54319802,110590.0,110580.0,0.27202523]
[1761275245602,0.5431981,110590.0,110580.0,0.0911607]
[1761275250775,0.54319818,110590.0,110580.0,0.0911607]
[1761275254756,0.54319818,110590.0,110580.0,0.27202523]
[1761275254950,0.54319818,110590.0,110580.0,0.0911607]
[1761275255759,0.54319818,110590.0,110580.0,0.00134169]
[1761275256834,0.54319818,110590.0,110580.0,0.00034169]
[1761275261955,0.54319818,110590.0,110580.0,0.27102523]
[1761275263856,0.20319818,110590.0,110580.0,0.27102523]
[1761275266699,0.20039528,110590.0,110580.0,0.27102523]
[1761275268138,0.19790314,110590.0,110580.0,0.27102523]
[1761275271604,0.53790314,110590.0,110580.0,0.0901607]
[1761275279156,0.53790314,110590.0,110580.0,0.27102523]
[1761275283885,0.53790314,110590.0,110580.0,0.0901607]
[1761275284066,0.53790314,110590.0,110580.0,0.27102523]
[1761275287021,0.35705497,110590.0,110580.0,0.27102523]
[1761275287445,0.53790314,110590.0,110580.0,0.27102523]
[1761275289453,0.53790314,110590.0,110580.0,0.28794403]
[1761275289678,0.35705497,110590.0,110580.0,0.28794403]
[1761275290127,0.35705491,110590.0,110580.0,0.28794357]
[1761275294865,0.53790308,110590.0,110580.0,0.28794357]
[1761275296773,0.53790308,110590.0,110580.0,0.28794592]
[1761275297123,0.53790308,110590.0,110580.0,0.10708139]
[1761275298018,0.53790308,110590.0,110580.0,0.28794592]
[1761275301855,0.53790308,110590.0,110580.0,0.10708139]
[1761275305445,0.53790316,110590.0,110580.0,0.10708139]
[1761275310725,0.53790316,110590.0,110580.0,0.28794592]
[1761275312621,0.53790316,110590.0,110580.0,0.28795129]
[1761275314642,0.53790316,110590.0,110580.0,0.10708676]
[1761275317546,0.53790316,110590.0,110580.0,0.28795129]
[1761275319114,0.53790316,110590.0,110580.0,0.10708676]
[1761275321689,0.53790316,110590.0,110580.0,0.28795129]
[1761275322733,0.53790316,110590.0,110580.0,0.10708676]
[1761275329319,0.53790316,110590.0,110580.0,0.30603774]
[1761275329565,0.53790316,110590.0,110580.0,0.28795129]
[1761275330146,0.52367625,110590.0,110580.0,0.28795129]
[1761275330382,0.5432211,110590.0,110580.0,0.28795129]
[1761275330592,0.52367625,110590.0,110580.0,0.28795129]
[1761275331225,0.52367625,110590.0,110580.0,0.10708676]
[1761275331445,0.54322123,110590.0,110580.0,0.12517321]
[1761275331850,0.52367625,110590.0,110580.0,0.30603774]
[1761275332048,0.52367625,110590.0,110580.0,0.28795129]
[1761275332264,0.57367625,110590.0,110580.0,0.28795129]
[1761275332475,0.5932221,110590.0,110580.0,0.28795129]
[1761275334068,0.5932221,110590.0,110580.0,0.28796164]
[1761275335356,0.5932221,110590.0,110580.0,0.10709711]
[1761275339170,0.59039402,110590.0,110580.0,0.0901607]
[1761275339394,0.5932221,110590.0,110580.0,0.10709675]
[1761275344307,0.5932221,110590.0,110580.0,0.10709693]
[1761275345000,0.5932221,110590.0,110580.0,0.01727792]
[1761275345201,0.62579852,110590.0,110580.0,0.01727792]
[1761275345370,0.65297111,110590.0,110580.0,0.01727792]
[1761275347272,0.68915339,110590.0,110580.0,0.01727792]
[1761275347480,0.68915339,110590.0,110580.0,0.00034169]
[1761275349969,0.31657697,110590.0,110580.0,0.00034169]
[1761275350167,0.31757697,110590.0,110580.0,0.00034169]
[1761275351345,0.31757738,110590.0,110580.0,0.00034169]
[1761275357153,0.2813951,110590.0,110580.0,0.00034169]
[1761275358807,0.25422251,110590.0,110580.0,0.00034169]
[1761275359006,0.59422251,110590.0,110580.0,0.00034169]
[1761275360507,0.54422251,110590.0,110580.0,0.00034169]
[1761275379467,0.20422251,110590.0,110580.0,0.27102523]
[1761275380298,0.20422251,110590.0,110580.0,0.0901607]
[1761275380506,0.20422251,110590.0,110580.0,0.27102523]
[1761275380886,0.20322251,110590.0,110580.0,0.27102523]
[1761275394587,0.20322251,110590.0,110580.0,0.0901607]
[1761275394793,0.20322251,110590.0,110580.0,0.28911168]
[1761275395004,0.20322251,110590.0,110580.0,0.27102523]
[1761275396971,0.01067387,110590.0,110580.0,0.27102523]
[1761275397183,0.19152204,110590.0,110580.0,0.27102523]
[1761275398807,0.19152204,110590.0,110580.0,0.0901607]
[1761275401045,0.19152204,110590.0,110580.0,0.0916607]
[1761275402174,0.19152204,110590.0,110580.0,0.27252523]
[1761275410407,0.01067387,110590.0,110580.0,0.27252523]
[1761275412831,0.19152204,110590.0,110580.0,0.27252523]
[1761275414615,0.01067387,110590.0,110580.0,0.27252523]
[1761275415678,0.19152204,110590.0,110580.0,0.27252523]
[1761275417457,0.01067387,110590.0,110580.0,0.27252523]
[1761275418094,0.19152204,110590.0,110580.0,0.27252523]
[1761275420574,0.19152204,110590.0,110580.0,0.0916607]
[1761275420788,0.19152204,110590.0,110580.0,0.10974715]
[1761275421026,0.19152204,110590.0,110580.0,0.29061168]
[1761275421222,0.19152204,110590.0,110580.0,0.27252523]
[1761275422695,0.19152204,110590.0,110580.0,0.0916607]
[1761275425822,0.56409846,110590.0,110580.0,0.00184169]
[1761275426294,0.59127108,110590.0,110580.0,0.00184169]
[1761275427328,0.59327108,110590.0,110580.0,0.00184169]
[1761275427739,0.59427108,110590.0,110580.0,0.00184169]
[1761275428615,0.56169466,110590.0,110580.0,0.00184169]
[1761275432639,0.55869466,110590.0,110580.0,0.00184169]
[1761275432993,0.55969466,110590.0,110580.0,0.00184169]
[1761275439200,0.54120291,110590.0,110580.0,0.00184169]
[1761275447334,0.51403029,110590.0,110580.0,0.00184169]
[1761275447696,0.51403029,110590.0,110580.0,0.18270622]
[1761275448744,0.51403029,110590.0,110580.0,0.00184169]
[1761275449150,0.51403029,110590.0,110580.0,0.18270622]
[1761275449358,0.54120086,110590.0,110580.0,0.18270622]
[1761275449731,0.51403029,110590.0,110580.0,0.18270622]
[1761275450125,0.54120086,110590.0,110580.0,0.18270622]
[1761275450752,0.51403029,110590.0,110580.0,0.27252523]
[1761275451214,0.51685839,110590.0,110580.0,0.27252523]
[1761275452959,0.51403029,110590.0,110580.0,0.27252523]
[1761275453886,0.51403029,110590.0,110580.0,0.0916607]
[1761275454136,0.51403029,110590.0,110580.0,0.27252523]
[1761275454137,0.001,110590.0,110580.0,0.27252523]
[1761275454602,0.001,110590.0,110580.0,0.299693]
[1761275455724,0.21704263,110600.0,110580.0,0.299693]
[1761275455943,0.55704263,110600.0,110590.0,0.08981901]
[1761275457002,0.55704263,110600.0,110590.0,0.08986773]
[1761275457516,0.57657075,110600.0,110590.0,0.08986773]
[1761275461661,0.57657075,110600.0,110590.0,0.2707159]
[1761275461878,0.54940153,110600.0,110590.0,0.08986773]
[1761275462133,0.35952812,110600.0,110590.0,0.28880071]
[1761275462348,0.02823001,110610.0,110600.0,0.18083182]
[1761275462592,0.00106325,110610.0,110600.0,0.28873401]
[1761275462793,0.00106325,110610.0,110600.0,0.27065083]
[1761275463675,0.00106325,110610.0,110600.0,0.27165083]
[1761275464588,0.00106325,110610.0,110600.0,0.29881301]
[1761275465959,0.00106325,110610.0,110600.0,0.27165083]
[1761275466392,0.02822543,110610.0,110600.0,0.27165083]
[1761275467613,0.2090409,110610.0,110600.0,0.27165083]
[1761275468510,0.2090409,110610.0,110600.0,0.09081901]
[1761275469587,0.2090409,110610.0,110600.0,0.28852785]
[1761275470470,0.02822543,110610.0,110600.0,0.28852785]
[1761275470731,0.2090409,110610.0,110600.0,0.28852785]
[1761275471583,0.02822543,110610.0,110600.0,0.28852785]
[1761275477614,0.2090409,110610.0,110600.0,0.28852785]
[1761275480890,0.18187872,110610.0,110600.0,0.28852785]
[1761275482663,0.18187872,110610.0,110600.0,0.2885376]
[1761275484913,0.18187872,110610.0,110600.0,0.28854415]
[1761275487332,0.00106325,110610.0,110600.0,0.28854415]
[1761275489669,0.00106325,110610.0,110600.0,0.28856191]
[1761275493206,0.00106325,110610.0,110600.0,0.288579]
[1761275496958,0.00106325,110610.0,110600.0,0.59961819]
[1761275497171,0.00106325,110610.0,110600.0,0.288579]
[1761275498221,0.00106325,110610.0,110600.0,0.289579]
[1761275498429,0.00106325,110610.0,110600.0,0.347459]
[1761275499058,0.00106325,110610.0,110600.0,0.65849819]
[1761275499276,0.00106325,110610.0,110600.0,0.65749819]
[1761275499703,0.00106325,110610.0,110600.0,0.36393314]
[1761275500154,0.00106325,110610.0,110600.0,0.64257002]
[1761275501494,0.00106325,110610.0,110600.0,0.33153083]
[1761275507696,0.00106325,110610.0,110600.0,0.6787523]
[1761275508130,0.00106325,110610.0,110600.0,0.71115461]
[1761275508346,0.00106325,110610.0,110600.0,0.6787523]
[1761275508790,0.00106325,110610.0,110600.0,0.70915461]
[1761275509024,0.00106325,110610.0,110600.0,0.6767523]
[1761275509242,0.00106325,110610.0,110600.0,0.6807523]
[1761275509384,0.00106325,110610.0,110600.0,0.36971311]
[1761275509608,0.00106325,110610.0,110600.0,0.6797523]
[1761275510030,0.00106325,110610.0,110600.0,0.6807523]
[1761275512835,0.00106325,110610.0,110600.0,0.71315461]
[1761275513022,0.00106325,110610.0,110600.0,0.6807523]
[1761275513280,0.00106325,110610.0,110600.0,0.71315461]
[1761275513701,0.00106325,110610.0,110600.0,0.6807523]
[1761275515216,0.00106325,110610.0,110600.0,0.71315461]
[1761275517206,1e-08,110610.0,110600.0,1.05315461]
[1761275517590,1e-08,110610.0,110600.0,1.08030952]
[1761275521130,1e-08,110610.0,110600.0,1.12908653]
[1761275522190,0.18978779,110650.0,110640.0,0.18076644]
[1761275522432,0.18978779,110650.0,110640.0,0.27058545]
[1761275523472,0.19027373,110650.0,110640.0,0.27058545]
[1761275523698,0.00048594,110650.0,110640.0,0.27058545]
[1761275524959,0.00148594,110650.0,110640.0,0.27058545]
[1761275527682,0.00285167,110650.0,110640.0,0.27058545]
[1761275529562,0.00285167,110650.0,110640.0,0.28747862]
[1761275535523,0.00285167,110650.0,110640.0,0.28612862]
[1761275540982,0.03000493,110650.0,110640.0,0.28612862]
[1761275547732,0.04952252,110650.0,110640.0,0.28612862]
[1761275555557,0.23027263,110650.0,110640.0,0.28612862]
[1761275555758,0.23027263,110650.0,110640.0,0.28747862]
[1761275557453,0.18075011,110650.0,110640.0,0.10671218]
[1761275557635,0.18075011,110650.0,110640.0,0.01689317]
[1761275557636,0.54790566,110650.0,110640.0,0.01689317]
[1761275558259,0.18078278,110630.0,110620.0,0.18983748]
[1761275558489,0.18078278,110630.0,110620.0,0.27965649]
[1761275558892,0.18077827,110640.0,110620.0,0.27965649]
[1761275559157,0.5479361,110640.0,110630.0,0.08981901]
[1761275561328,0.5479361,110640.0,110630.0,0.09081901]
[1761275562600,0.36715783,110640.0,110630.0,0.09081901]
[1761275562839,0.5479361,110640.0,110630.0,0.09081901]
[1761275564233,0.5479361,110640.0,110630.0,0.09188184]
[1761275568310,0.54724922,110640.0,110630.0,0.09188184]
[1761275571730,0.54724922,110640.0,110630.0,0.09088184]
[1761275571942,0.54723739,110640.0,110630.0,0.28974289]
[1761275572092,0.54723739,110640.0,110630.0,0.27166462]
[1761275572508,0.56673735,110640.0,110630.0,0.27166462]
[1761275582949,0.38597091,110640.0,110630.0,0.27166462]
[1761275583147,0.36647095,110640.0,110630.0,0.27166462]
[1761275585338,0.34,110640.0,110630.0,0.27166462]
[1761275585546,0.55694333,110650.0,110640.0,0.18076644]
[1761275585761,0.57646226,110650.0,110640.0,0.27058545]
[1761275585967,0.54930654,110650.0,110640.0,0.27058545]
[1761275589440,0.54930654,110650.0,110640.0,0.08981901]
[1761275591446,0.18076644,110640.0,110630.0,0.20899872]
[1761275591641,0.20028537,110640.0,110630.0,0.27166312]
[1761275592957,0.20028537,110640.0,110630.0,0.09088184]
[1761275595363,0.54028537,110640.0,110630.0,0.09088184]
[1761275598629,0.54028537,110640.0,110630.0,0.00106283]
[1761275606096,0.54027948,110640.0,110630.0,0.00106283]
[1761275607124,0.65790282,110640.0,110630.0,0.00106283]
[1761275607331,0.71514541,110640.0,110630.0,0.00106283]
[1761275607647,0.7423101,110640.0,110630.0,0.00106283]
[1761275608944,0.7433101,110640.0,110630.0,0.00106283]
[1761275609129,0.18084594,110600.0,110580.0,0.218571]
[1761275609281,0.52084594,110600.0,110590.0,0.08981901]
[1761275610289,0.52084594,110600.0,110590.0,0.09030495]
[1761275611145,0.52084594,110600.0,110590.0,0.00048594]
[1761275614917,0.52084594,110600.0,110590.0,0.00185236]
[1761275617687,0.53208873,110600.0,110590.0,0.00185236]
[1761275618732,0.52084594,110600.0,110590.0,0.00185236]
[1761275623195,0.52084594,110600.0,110590.0,0.09167137]
[1761275625640,0.52084594,110600.0,110590.0,0.27251954]
[1761275625841,0.52084594,110600.0,110590.0,0.09167137]
[1761275626857,0.51969926,110600.0,110590.0,0.09167137]
[1761275635321,0.53920609,110600.0,110590.0,0.09167137]
[1761275636757,0.53920609,110600.0,110590.0,0.27251954]
[1761275636974,0.53920609,110600.0,110590.0,0.09167137]
[1761275644985,0.53920609,110600.0,110590.0,0.27251954]
[1761275645992,0.53920609,110600.0,110590.0,0.09167137]
[1761275646258,0.53920609,110600.0,110590.0,0.11883798]
[1761275649711,0.53920609,110600.0,110590.0,0.29968615]
[1761275654990,0.53919197,110600.0,110590.0,0.29968615]
[1761275658520,0.01950683,110600.0,110590.0,0.29968615]
[1761275658707,0.18081566,110610.0,110590.0,0.29968615]
[1761275658910,0.54035344,110610.0,110600.0,0.10790219]
[1761275659042,0.54035344,110610.0,110600.0,0.10892691]
[1761275659455,0.54035344,110610.0,110600.0,0.13609126]
[1761275659654,0.54035344,110610.0,110600.0,0.31692308]
[1761275659860,0.54035344,110610.0,110600.0,0.11800808]
[1761275660310,0.54035344,110610.0,110600.0,0.2988399]
[1761275661170,0.54135344,110610.0,110600.0,0.2988399]
[1761275667646,0.36053778,110610.0,110600.0,0.2988399]
[1761275668248,0.54135325,110610.0,110600.0,0.2988399]
[1761275669864,0.36053778,110610.0,110600.0,0.2988399]
[1761275671495,0.54135325,110610.0,110600.0,0.2988399]
[1761275672766,0.36053778,110610.0,110600.0,0.2988399]
[1761275673397,0.02053778,110610.0,110600.0,0.2988399]
[1761275674033,0.01953778,110610.0,110600.0,0.2988399]
[1761275674180,0.53884902,110620.0,110610.0,0.18081547]
[1761275674381,0.55837147,110620.0,110610.0,0.27063448]
[1761275674628,0.37757234,110620.0,110610.0,0.27063448]
[1761275674974,0.37757234,110620.0,110610.0,0.29779698]
[1761275675183,0.55837147,110620.0,110610.0,0.29779698]
[1761275675590,0.37857234,110620.0,110610.0,0.29779698]
[1761275679440,0.55937147,110620.0,110610.0,0.29779698]
[1761275679624,0.55937147,110620.0,110610.0,0.29848007]
[1761275689859,0.55937147,110620.0,110610.0,0.1176646]
[1761275690690,0.55937147,110620.0,110610.0,0.29848007]
[1761275694454,0.55937147,110620.0,110610.0,0.1176646]
[1761275701407,0.55937147,110620.0,110610.0,0.00068309]
[1761275704888,0.20132158,110620.0,110610.0,0.00068309]
[1761275706959,0.54132158,110620.0,110610.0,0.00068309]
[1761275715335,0.57380083,110620.0,110610.0,0.00068309]
[1761275722244,0.60096862,110620.0,110610.0,0.00068309]
[1761275729504,0.60096527,110620.0,110610.0,0.00068309]
[1761275740902,0.36227181,110620.0,110610.0,0.00068309]
[1761275741110,0.54307094,110620.0,110610.0,0.00068309]
[1761275743531,0.57555019,110620.0,110610.0,0.00068309]
[1761275751081,0.59178982,110620.0,110610.0,0.00068309]
[1761275762119,0.26005622,110620.0,110610.0,0.00068309]
[1761275765897,0.23288843,110620.0,110610.0,0.00068309]
[1761275767724,0.26907071,110620.0,110610.0,0.00068309]
[1761275767915,0.35888972,110620.0,110610.0,0.00068309]
[1761275772314,0.3750384,110620.0,110610.0,0.00068309]
[1761275779205,0.15857719,110620.0,110610.0,0.00068309]
[1761275779716,0.33937632,110620.0,110610.0,0.00068309]
[1761275785297,0.15457123,110620.0,110610.0,0.00068309]
[1761275786513,0.15439839,110620.0,110610.0,0.00068309]
[1761275795448,0.20311727,110620.0,110610.0,0.00068309]
[1761275798752,0.62039968,110620.0,110610.0,0.00068309]
[1761275798982,0.64757163,110620.0,110610.0,0.00068309]
[1761275799413,0.69642208,110620.0,110610.0,0.00068309]
[1761275800490,0.69742208,110620.0,110610.0,0.00068309]
[1761275801266,0.70042208,110620.0,110610.0,0.00068309]
[1761275804092,0.6642398,110620.0,110610.0,0.00068309]
[1761275808252,0.66415844,110620.0,110610.0,0.00068309]
[1761275809552,0.68369245,110620.0,110610.0,0.00068309]
[1761275817637,0.68369245,110620.0,110610.0,0.00072829]
[1761275821411,0.68369501,110620.0,110610.0,0.00072829]
[1761275821601,0.593876,110620.0,110610.0,0.00072829]
[1761275824263,0.67781394,110620.0,110610.0,0.00072829]
[1761275824675,0.593876,110620.0,110610.0,0.00072829]
[1761275849670,0.57308432,110620.0,110610.0,0.00072829]
[1761275859545,0.58937342,110620.0,110610.0,0.00072829]
[1761275866702,0.2640795,110620.0,110610.0,0.00072829]
[1761275872140,0.6040795,110620.0,110610.0,0.00072829]
[1761275875427,0.5443357,110620.0,110610.0,0.00072829]
[1761275876593,0.621758,110620.0,110610.0,0.00072829]
[1761275876796,0.622758,110620.0,110610.0,0.00072829]
[1761275877006,0.624758,110620.0,110610.0,0.00072829]
[1761275884024,0.57590755,110620.0,110610.0,0.00072829]
[1761275886455,0.60307483,110620.0,110610.0,0.00072829]
[1761275891901,0.57590755,110620.0,110610.0,0.00072829]
[1761275894251,0.5433357,110620.0,110610.0,0.00072829]
[1761275894638,0.2033357,110620.0,110610.0,0.00072829]
[1761275894839,0.2033357,110620.0,110610.0,0.0905473]
[1761275895023,0.5433357,110620.0,110610.0,0.0905473]
[1761275895222,0.5433357,110620.0,110610.0,0.11771138]
[1761275895586,0.5423357,110620.0,110610.0,0.29852685]
[1761275895725,0.5403357,110620.0,110610.0,0.29852685]
[1761275895928,0.5403357,110620.0,110610.0,0.11771138]
[1761275896157,0.5413357,110620.0,110610.0,0.13579292]
[1761275898074,0.02053657,110620.0,110610.0,0.31660839]
[1761275898308,0.001,110620.0,110610.0,0.29852685]
[1761275899420,0.19889491,110630.0,110620.0,0.18079913]
[1761275899583,0.21839766,110630.0,110620.0,0.27061814]
[1761275900246,0.03761379,110630.0,110620.0,0.27061814]
[1761275900423,0.01811104,110630.0,110620.0,0.27061814]
[1761275900631,0.01811104,110630.0,110620.0,0.29777804]
[1761275904879,0.01811104,110630.0,110620.0,0.29811957]
[1761275914631,0.01811104,110630.0,110620.0,0.45671957]
[1761275917739,0.01811104,110630.0,110620.0,0.45771957]
[1761275919051,0.01811104,110630.0,110620.0,0.45971957]
[1761275922041,0.01811104,110630.0,110620.0,0.77063697]
[1761275922584,0.01811104,110630.0,110620.0,0.80681925]
[1761275922793,0.01811104,110630.0,110620.0,1.20469925]
[1761275924680,0.00106274,110650.0,110640.0,0.18076644]
[1761275924986,0.00106274,110650.0,110640.0,0.28866209]
[1761275925203,0.00106274,110650.0,110640.0,0.27058545]
[1761275925400,0.00106274,110650.0,110640.0,0.29773947]
[1761275925745,0.00111129,110650.0,110640.0,0.29773947]
[1761275932810,0.1807355,110660.0,110650.0,0.18075011]
[1761275933099,0.20022648,110660.0,110650.0,0.28864413]
[1761275933310,0.20022648,110660.0,110650.0,0.27056912]
[1761275933528,0.20022648,110660.0,110650.0,0.29772314]
[1761275935195,0.20122648,110660.0,110650.0,0.29772314]
[1761275936151,0.02049098,110660.0,110650.0,0.29772314]
[1761275936352,0.001,110660.0,110650.0,0.29772314]
[1761275938366,0.00134136,110660.0,110650.0,0.29772314]
[1761275939088,0.00134136,110660.0,110650.0,0.45632314]
[1761275939782,0.00034136,110660.0,110650.0,0.45632314]
[1761275941318,0.37286656,110670.0,110660.0,0.18073377]
[1761275941493,0.37286656,110670.0,110660.0,0.28862615]
[1761275941694,0.37286656,110670.0,110660.0,0.27055278]
[1761275941896,0.553584,110670.0,110660.0,0.27055278]
[1761275942125,0.553584,110670.0,110660.0,0.08981901]
[1761275942325,0.18073377,110660.0,110650.0,0.02715402]
[1761275942546,0.20022581,110660.0,110650.0,0.08981901]
[1761275942799,0.1807587,110650.0,110630.0,0.18980806]
[1761275942970,0.1807587,110650.0,110640.0,0.1169736]
[1761275943183,0.1807587,110650.0,110640.0,0.08981901]
[1761275945504,0.1807587,110650.0,110640.0,0.09081901]
[1761275945714,0.18977045,110660.0,110640.0,0.27158545]
[1761275945868,0.18075011,110650.0,110640.0,0.27158545]
[1761275946235,0.20790661,110650.0,110640.0,0.27158545]
[1761275946867,0.20790661,110650.0,110640.0,0.2726482]
[1761275947278,0.20790661,110650.0,110640.0,0.09188176]
[1761275947481,0.22741208,110650.0,110640.0,0.09188176]
[1761275947704,0.22741208,110650.0,110640.0,0.09081901]
[1761275950585,0.22741208,110650.0,110640.0,0.27158545]
[1761275951968,0.22741208,110650.0,110640.0,0.09081901]
[1761275952820,0.22241208,110650.0,110640.0,0.09081901]
[1761275962484,0.19525558,110650.0,110640.0,0.09081901]
[1761275963461,0.18977045,110660.0,110640.0,0.09081901]
[1761275964077,0.52075011,110650.0,110640.0,0.001]
[1761275964512,0.54790981,110650.0,110640.0,0.001]
[1761275964733,0.52076644,110640.0,110630.0,0.00048594]
[1761275965566,0.54792872,110640.0,110630.0,0.00048594]
[1761275966320,0.54892872,110640.0,110630.0,0.00048594]
[1761275975718,0.56839584,110640.0,110630.0,0.00048594]
[1761275989940,0.54123356,110640.0,110630.0,0.00048594]
[1761275991667,0.54126731,110640.0,110630.0,0.00048594]
[1761276001015,0.57383916,110640.0,110630.0,0.00048594]
[1761276001857,0.20126731,110640.0,110630.0,0.09030495]
[1761276002437,0.02050087,110640.0,110630.0,0.289166]
[1761276002633,0.001,110640.0,110630.0,0.27108773]